Cogmind - Beta 15 @@@ ROGUE MODE // 2025.10.15 @ 12:39:29 Player: Kotyk77 Result: Destroyed by H-77 Assassin with Coil Gun Performance ------------- Evolutions (7) 3500 Regions Visited (15) 3000 Robots Destroyed (88) 440 Value Destroyed (4041) 4041 Prototype IDs (36) 720 Alien Tech Used (0) 0 Bonus (688) 688 TOTAL SCORE: 12389 Bonus ------- Follower Combat Kills 388 Aligned with FarCom 300 Cogmind --------- Core Integrity 0/1300 Matter 182/300 Energy 0/100 System Corruption 47% Temperature Cool (0) Movement Core (350) Ox6 Location -3/Research Parts ------- > --- POWER (2) -------- (None) > --- PROPULSION (8) --- (None) > --- UTILITY (8) ------ Advanced Visual Processing Unit Advanced Targeting Computer Advanced Target Analyzer Advanced Force Field System Shield > --- WEAPON (3) ------- Gamma Rifle > --- INVENTORY (5) ---- Particle Reactor Advanced Point Defense System Peak State ------------ > --- POWER ------------ Micro Antimatter Reactor Micro Antimatter Reactor > --- PROPULSION ------- Myomer Leg Biometal Leg Biometal Leg Enhanced Biometal Leg Enhanced Biometal Leg Improved Antigrav System Improved Antigrav System Improved Antigrav System > --- UTILITY ---------- Medium Storage Unit Advanced Targeting Computer Advanced Target Analyzer Improved Transmission Jammer Improved Focal Shield Advanced Force Field Hacking Suite System Shield > --- WEAPON ----------- Heavy Machine Gun Heavy Machine Gun Powered Hammer > --- INVENTORY -------- Light Antimatter Reactor Light Antimatter Reactor Improved Antigrav System Advanced Sensor Array Advanced Target Analyzer Layered Light Armor Plating Advanced Point Defense System Heavy Machine Gun Heavy Machine Gun Light Antimatter Cannon [Rating: 135] Favorites ----------- Power Deuterium Engine Engine Deuterium Engine Power Core Micro Nuclear Core Reactor Micro Antimatter Reactor Propulsion Carbon-fiber Leg Treads Medium Treads Leg Carbon-fiber Leg Wheel Compact Wheel Hover Unit Combat Gravmag System Flight Unit Nuclear Pulse Thruster Utility High-capacity Storage Unit Device Improved Terrain Scanner Storage High-capacity Storage Unit Processor Advanced Melee Analysis Suite Hackware Hacking Suite Protection Improved Medium Armor Plating Weapon Heavy Machine Gun Energy Gun Advanced Beam Rifle Energy Cannon Advanced Beam Cannon Ballistic Gun Heavy Machine Gun Ballistic Cannon Light Antimatter Cannon Launcher Long-range Missile Launcher Special Weapon Mining Laser Impact Weapon Thunder Hammer Slashing Weapon Power Sword Build | -11 -10 -10 -10 -9 -8 -8 -7 -6 -5 -5 -5 -4 -4 -4 -3 ------- Run | Yrd Mat Min Exi Min Mat Sto Fac Fac Fac Upp Upp Fac Upp Upp Res Slots Evolved 14 | . . . . . 4 . 2 2 2 . . 2 . . 2 Power 1 | . . . . . . . 1 . . . . . . . . Propulsion 6 | . . . . . 1 . 1 1 1 . . 2 . . . Utility 6 | . . . . . 3 . . 1 1 . . . . . 1 Weapon 1 | . . . . . . . . . . . . . . . 1 Parts Attached 167 | 7 1 . . 2 14 12 12 17 6 5 18 19 10 5 39 Power 22 | 1 . . . . 1 2 3 1 1 . 2 4 1 . 6 Engine 6 | 1 . . . . . 1 1 1 . . . 1 . . 1 Core 10 | . . . . . 1 1 2 . 1 . 2 2 1 . . Reactor 6 | . . . . . . . . . . . . 1 . . 5 Propulsion 55 | 2 . . . . 3 7 4 3 3 1 8 4 3 2 15 Treads 5 | . . . . . . . . . 2 . 1 . 1 . 1 Leg 24 | . . . . . 1 7 1 2 1 . 4 1 1 1 5 Wheel 9 | 2 . . . . 2 . 3 . . . . . . . 2 Hover 16 | . . . . . . . . 1 . . 3 3 1 1 7 Flight 1 | . . . . . . . . . . 1 . . . . . Utility 56 | 2 1 . . . 6 1 3 10 1 2 5 9 3 2 11 Device 22 | 1 . . . . 3 1 . 2 . 2 4 1 2 1 5 Storage 4 | 1 1 . . . 1 . . . . . . . . . 1 Processor 13 | . . . . . 1 . . 3 1 . 1 2 1 1 3 Hackware 6 | . . . . . . . . 1 . . . 4 . . 1 Protection 11 | . . . . . 1 . 3 4 . . . 2 . . 1 Artifact . | . . . . . . . . . . . . . . . . Weapon 34 | 2 . . . 2 4 2 2 3 1 2 3 2 3 1 7 Energy Gun 4 | . . . . . . 1 1 . . . 1 . . . 1 Energy Cannon 3 | . . . . . 1 1 . . . . . 1 . . . Ballistic Gun 12 | 2 . . . . 1 . . 1 . 1 1 . 1 1 4 Ballistic Cannon 3 | . . . . . . . . . . . 1 . 2 . . Launcher 4 | . . . . 2 . . . 1 . 1 . . . . . Special Weapon 1 | . . . . . 1 . . . . . . . . . . Impact Weapon 3 | . . . . . 1 . . . . . . 1 . . 1 Slashing Weapon 4 | . . . . . . . 1 1 1 . . . . . 1 Piercing Weapon . | . . . . . . . . . . . . . . . . Special Melee Weapon . | . . . . . . . . . . . . . . . . Unidentified Prototypes 11 | . . . . . 1 3 . 2 . . . 1 2 . 2 Corrupted Parts 7 | . . . . . . . . . . . . 2 2 1 2 System Corruption 41 | . . . . . . . . . . . . 9 9 5 18 Parts Lost 77 | . . . . . 4 2 . . . 2 10 17 5 8 29 Power 15 | . . . . . 1 1 . . . . 1 5 1 1 5 Propulsion 30 | . . . . . 2 . . . . 1 4 5 1 5 12 Utility 22 | . . . . . . 1 . . . 1 4 6 2 1 7 Weapon 10 | . . . . . 1 . . . . . 1 1 1 1 5 Highest Loss Streak 19 | . . . . . 2 1 . . . 2 6 4 3 8 19 To Critical Strikes 1 | . . . . . 1 . . . . . . . . . . Average Backups 16 | 3 7 9 10 14 17 18 18 18 18 17 18 18 17 12 8 Power 1 | . 2 2 2 2 2 2 1 1 1 1 . . . . 1 Propulsion 2 | 1 4 5 5 5 4 4 5 3 3 3 2 . 1 1 . Utility 7 | . . 1 2 5 3 5 6 7 9 9 10 12 7 5 3 Weapon 5 | . 1 1 1 2 7 7 6 5 4 4 5 6 9 6 1 Tool/Special . | . . . . . . . . . . . . . . . . Unused Backups 32 | . . . . . 1 2 6 2 5 . 3 . . 7 6 Power 5 | . . . . . . 1 1 . . . . . . . 3 Propulsion 8 | . . . . . 1 . 1 . 2 . 1 . . 1 2 Utility 7 | . . . . . . . 2 . 1 . 1 . . 2 1 Weapon 12 | . . . . . . 1 2 2 2 . 1 . . 4 . Tool/Special . | . . . . . . . . . . . . . . . . Average Slot Usage (%) 86 | . 100 100 100 100 92 99 87 91 97 93 91 80 51 36 83 Engine 4 | . 14 14 14 14 8 2 8 6 5 5 1 . 3 . . Core 4 | . . . . . . 6 5 6 5 5 8 6 . . . Leg 13 | . . . . . . 19 10 12 34 31 16 2 2 3 16 Wheel 7 | . 28 28 28 28 21 6 19 15 . . . . . . 1 Hover 5 | . . . . . . . . . . . 8 25 6 3 7 Device 10 | . 14 14 14 14 19 9 11 16 12 9 11 . 4 . 8 Storage 7 | . 14 14 14 14 17 18 7 6 5 5 5 5 5 2 2 Processor 9 | . . . . . 3 9 . 5 9 11 10 10 18 17 14 Hackware 4 | . . . . . . . . 1 5 5 4 16 5 5 8 Protection 4 | . . . . . 2 9 13 8 2 3 4 1 . . . Ballistic Gun 4 | . 28 28 28 16 7 . . 2 5 4 2 . . . 8 Impact Weapon 1 | . . . . . 5 . . . . . . 3 4 1 1 Slashing Weapon 2 | . . . . . . . 5 5 5 5 5 1 . . . Peak Build Rating 135 | 9 9 11 12 14 29 36 42 66 73 78 90 104 66 60 135 Average Rating 61 | 5 9 10 11 13 22 30 38 52 69 70 75 92 53 34 104 On Entrance 36 | . 9 9 11 12 14 20 31 42 60 73 71 82 56 60 33 Naked Turns . | . . . . . . . . . . . . . . . . Heaviest Build 88 | 14 49 49 49 52 65 60 71 85 78 88 86 80 64 59 57 Greatest Support 141 | 26 26 26 26 26 48 45 60 85 105 93 95 90 37 25 141 Greatest Overweight (x) 14 | . 1 1 1 1 2 3 1 1 . 1 1 2 3 14 7 Average Overweight (x) . | . . 1 1 1 1 1 . . . . . . 1 . . Largest Inventory Capacity 20 | 8 20 20 20 20 20 20 20 20 20 20 20 20 20 20 10 Average Capacity 18 | 7 15 20 20 20 20 20 20 20 20 20 20 20 20 12 8 Most Carried 20 | 7 9 11 14 19 20 20 20 20 20 20 20 20 20 20 10 Average Carried 17 | 3 7 10 11 15 18 19 19 19 19 19 19 18 17 12 8 Final Capacity 20 | 8 20 20 20 20 20 20 20 20 20 20 20 20 20 5 5 Final Carried 20 | 7 9 11 14 19 18 20 20 20 20 20 18 17 20 5 2 Class Distribution -------------------- 33% | Mutant 15% | Scavenger-Mutant 14% | Scavenger-Assassin 8% | Hacker-Mutant 8% | Assassin 7% | Derelict-Mutant 4% | Scavenger-Gunner 3% | Scavenger-Gladiator Dominant Class ---------------- Mutant | -10/Materials Mutant | -10/Mines Mutant | -10/Exiles Skirmisher | -9/Mines Assassin | -8/Materials Mutant | -8/Storage Scavenger-Assassin | -7/Factory Scavenger-Assassin | -6/Factory Assassin | -5/Factory Mutant | -5/Upper Caves Derelict-Mutant | -5/Upper Caves Hacker-Mutant | -4/Factory Mutant | -4/Upper Caves Mutant | -4/Upper Caves Scavenger-Mutant | -3/Research Resources | -11 -10 -10 -10 -9 -8 -8 -7 -6 -5 -5 -5 -4 -4 -4 -3 ----------- Run | Yrd Mat Min Exi Min Mat Sto Fac Fac Fac Upp Upp Fac Upp Upp Res Matter Collected 3328 | 283 . . 58 20 187 203 240 272 80 264 308 244 201 55 913 Remotely . | . . . . . . . . . . . . . . . . Salvage Created 4151 | 64 46 . . . 230 238 355 59 88 129 779 297 233 96 1537 Parts 178 | 4 2 . . . 8 8 18 6 3 7 24 3 10 7 78 Haulers Intercepted 1 | . . . . . 1 . . . . . . . . . . Recyclers Shooed 1 | . . . . . . . . . . . . . . . 1 Parts Field Recycled . | . . . . . . . . . . . . . . . . Retrieved Matter . | . . . . . . . . . . . . . . . . Parts Self-Destructed 33 | . . . . . . . . . . 7 17 . 3 6 . Prevented 3 | . . . . . . . . . . . . . 3 . . Kills | -11 -10 -10 -10 -9 -8 -8 -7 -6 -5 -5 -5 -4 -4 -4 -3 ------- Run | Yrd Mat Min Exi Min Mat Sto Fac Fac Fac Upp Upp Fac Upp Upp Res Combat Hostiles Destroyed 67 | . 1 . . . 3 5 7 1 1 8 11 5 4 2 19 Melee 23 | . . . . . 1 . 6 1 1 . 8 1 3 1 1 Guns 21 | . 1 . . . . 1 1 . . 3 . . . 1 14 Cannons 6 | . . . . . 2 1 . . . . . . . . 3 AOE 11 | . . . . . . 3 . . . 5 3 . . . . Classes Destroyed 15 | 2 1 . . . 5 2 1 1 . 1 1 . 1 . . Worker 2 | . . . . . . . . . . . . . . . 2 Builder 3 | . . . . . 1 . 1 . . . . 1 . . . Tunneler 1 | 1 . . . . . . . . . . . . . . . Hauler 1 | . . . . . 1 . . . . . . . . . . Recycler 8 | 1 . . . . . 2 . . . . . . . . 5 Operator 3 | . . . . . . . . 2 . . . 1 . . . Watcher 3 | . . . . . 1 . . . 1 . . . . . 1 Swarmer 15 | . . . . . . . . . . 5 1 . . . 9 Grunt 18 | . 1 . . . 1 3 2 . . 2 9 . . . . Duelist 1 | . . . . . . 1 . . . . . . . . . Protector 1 | . . . . . . 1 . . . . . . . . . Sentry 5 | . . . . . 1 . . . . 1 1 2 . . . Hunter 7 | . . . . . 1 . 2 . . . . 2 2 . . Programmer 20 | . . . . . . . 3 1 1 . . 1 2 2 10 Decomposer 1 | . . . . . . . . . . . . . 1 . . Packrat 3 | . . . . . . . . . . . 3 . . . . Samaritan 2 | . . . . . . . . . . . 2 . . . . Best Kill Streak 6 | 1 1 . . . 1 5 2 1 1 6 5 1 2 1 6 Combat Bots Only 6 | . 1 . . . 1 4 2 1 1 6 5 2 2 1 3 Max Kills in Single Turn 3 | 1 1 . . . 1 3 1 1 1 1 2 1 1 1 1 Gunslinging . | . . . . . . . . . . . . . . . . Exploded 2 | . . . . . . 2 . . . 1 2 . . . . Melee 1 | . . . . . 1 . 1 1 1 . 1 1 1 1 1 Uniques/NPCs Destroyed . | . . . . . . . . . . . . . . . . Combat | -11 -10 -10 -10 -9 -8 -8 -7 -6 -5 -5 -5 -4 -4 -4 -3 -------- Run | Yrd Mat Min Exi Min Mat Sto Fac Fac Fac Upp Upp Fac Upp Upp Res Hostile Shots Fired 1046 | . 2 . . . 43 26 41 6 23 21 184 178 75 44 403 Missed 311 | . 1 . . . 11 5 12 3 5 9 56 67 24 6 112 Hits 735 | . 1 . . . 32 21 29 3 18 12 128 111 51 38 291 Melee 4 | . . . . . . 3 . . . 1 . . . . . Projectile 731 | . 1 . . . 32 18 29 3 18 11 128 111 51 38 291 AOE 2 | . . . . . . . . . . . . 2 . . . Critical Strikes 39 | . . . . . 1 2 1 . 1 . 4 10 3 2 15 Part Disruptions 8 | . . . . . . . 1 . . . . . . . 7 Damage Taken 13826 | . 12 . . . 392 494 454 33 394 343 2057 2416 811 770 5650 Core 2658 | . . . . . 94 93 65 10 62 24 192 222 324 265 1307 Absorbed by Shields 275 | . . . . . . . . 12 . . 213 . . . 50 Redirected to Shielding 49 | . . . . . . 20 29 . . . . . . . . Ignored by Resistances 695 | . . . . . . . . . . 8 . . . . 687 Regen/Repaired (Parts) 431 | . . . . . . 54 130 . . . . 247 . . . Core Remaining (%) 79 | 100 . . . 100 . 66 90 98 . . 72 . . 29 . Volleys Fired 220 | 6 2 . . . 17 28 5 3 . 20 21 28 . 6 84 Largest 3 | 2 2 . . . 2 2 2 1 . 1 1 1 . 1 3 Hottest 168 | 40 40 . . . 168 94 122 39 . 43 81 90 . 33 90 Shots Fired 286 | 12 4 . . . 28 29 9 3 . 21 21 28 . 5 126 Gun 186 | 12 4 . . . 11 4 9 . . 11 10 8 . 5 112 Cannon 71 | . . . . . 11 20 . . . . 6 20 . . 14 Launcher 23 | . . . . . . 5 . 3 . 10 5 . . . . Special 6 | . . . . . 6 . . . . . . . . . . Kinetic 184 | 12 4 . . . 11 . . . . 11 8 8 . 5 125 Thermal 78 | . . . . . 17 24 9 . . . 8 20 . . . Explosive 23 | . . . . . . 5 . 3 . 10 5 . . . . Electromagnetic 1 | . . . . . . . . . . . . . . . 1 Robot Hit Streak 22 | 6 1 . . . 7 12 9 11 . 19 5 5 . 3 22 Robot Miss Streak 5 | 2 1 . . . 2 3 . . . 1 3 4 . 1 5 Penetration Max . | . . . . . . . . . . . . . . . . Secondary Targets 2 | . . . . . . . . . . . . . . . 2 Max Gunslinging Chain 1 | . . . . . . . . . . . . . . . 1 Shots Hit Robots 303 | 7 2 . . . 20 19 22 6 9 12 41 40 10 8 107 Core Hits 137 | 4 2 . . . 7 14 9 5 1 15 26 4 2 3 45 Critical Kills 5 | . . . . . . . . . . . . . 1 1 3 Critical Parts Destroyed 23 | . . . . . 1 . . . . . . 9 4 . 9 Critical Strikes 34 | . . . . . 1 . 2 . . . 3 9 5 1 13 Burn 1 | . . . . . . . 1 . . . . . . . . Destroy 6 | . . . . . . . . . . . . . . . 6 Blast 1 | . . . . . . . . . . . . . . . 1 Smash 22 | . . . . . 1 . . . . . . 9 5 1 6 Sever 4 | . . . . . . . 1 . . . 3 . . . . Melee Attacks 195 | . . . . . 16 . 27 4 13 1 39 44 10 6 35 Impact 102 | . . . . . 16 . . . . . . 41 10 6 29 Slashing 93 | . . . . . . . 27 4 13 1 39 3 . . 6 Piercing . | . . . . . . . . . . . . . . . . Sneak Attacks 16 | . . . . . 1 . 3 1 1 . 5 1 1 . 3 Combat Hostiles 1 | . . . . . . . 1 . . . . . . . . Follow-up Attacks . | . . . . . . . . . . . . . . . . Damage Inflicted 13141 | 77 16 . . . 518 902 1015 298 435 1124 2278 2015 697 319 3447 Guns 2847 | 77 16 . . . 86 20 195 . . 198 104 110 . 109 1932 Cannons 1214 | . . . . . 143 328 . . . . 95 175 . . 473 Explosions 2244 | . . . . . . 554 . 185 . 926 526 . . . 53 Melee 6802 | . . . . . 265 . 820 113 435 . 1553 1730 697 210 979 Ramming 10 | . . . . . . . . . . . . . . . 10 Kinetic 3089 | 77 16 . . . 86 . . . . 198 119 110 . 109 2374 Thermal 965 | . . . . . 167 348 195 . . . 80 175 . . . Explosive 2191 | . . . . . . 554 . 185 . 926 526 . . . . Electromagnetic 84 | . . . . . . . . . . . . . . . 84 Impact 3671 | . . . . . 265 . . . . . . 1730 697 210 769 Slashing 3131 | . . . . . . . 820 113 435 . 1553 . . . 210 Piercing . | . . . . . . . . . . . . . . . . Highest Corruption 47 | . . . . . . . 3 . 4 5 . 15 23 39 47 Average Corruption 9 | . . . . . . . 1 . 2 4 . 7 15 34 11 Corruption Purged 10 | . . . . . . . . . . 5 . . 5 . . Corruption Blocked 4 | . . . . . . . . . . . . . 4 . . Effects 112 | . . . . . . . 9 . 1 6 . 9 44 10 33 Message Errors 28 | . . . . . . . 4 . . 1 . 3 10 4 6 Matter Fused 22 | . . . . . . . 2 . . . . 2 10 1 7 Heat Flow Errors 9 | . . . . . . . . . . . . 1 6 1 1 Energy Discharges 12 | . . . . . . . . . 1 2 . 2 3 . 4 Parts Rejected 3 | . . . . . . . . . . . . . . 1 2 Data Loss (minor) 23 | . . . . . . . 3 . . 1 . . 12 1 6 Data Loss (major) 3 | . . . . . . . . . . 1 . . 2 . . Misfires 1 | . . . . . . . . . . 1 . . . . . Alerts 3 | . . . . . . . . . . . . 1 1 . 1 Misdirections 4 | . . . . . . . . . . . . . . 1 3 Weapon Failures 4 | . . . . . . . . . . . . . . 1 3 Overload Shots . | . . . . . . . . . . . . . . . . Overflow Damage 2375 | . . . . . 104 12 144 5 115 34 104 793 406 24 634 Projectiles 35 | . . . . . . 12 . . . . . . . . 23 Explosions 39 | . . . . . . . . 5 . 34 . . . . . Melee 2301 | . . . . . 104 . 144 . 115 . 104 793 406 24 611 Knockbacks 19 | . . . . . . . . . . . . 5 . 2 12 Impact 12 | . . . . . . . . . . . . 5 . 2 5 Kinetic 6 | . . . . . . . . . . . . . . . 6 Secondary 1 | . . . . . . . . . . . . . . . 1 Self-Inflicted Damage 173 | . . . . . . 59 . . . 83 . . . . 31 Shots 7 | . . . . . . 4 . . . 2 . . . . 1 Rammed 5 | . . . . . . . . . . . . . . . 5 Targets Rammed 6 | . . . . . . . . . . . . . . . 6 Kicked 1 | . . . . . . . . . . . . . . . 1 Crushed . | . . . . . . . . . . . . . . . . Highest Temperature 359 | . . . . . 12 8 72 . . 12 359 283 238 115 188 Average Temperature 86 | . . . . . 5 3 37 . . 4 114 101 112 72 20 Received Heat Transfer 1475 | . 6 . . . 81 180 45 . 27 18 512 432 . . 174 Effects 6 | . . . . . . . . . . . 3 2 1 . . Shutdowns 1 | . . . . . . . . . . . 1 . . . . Energy Bleed 3 | . . . . . . . . . . . 2 1 . . . Interference 2 | . . . . . . . . . . . . 1 1 . . Siege Activations . | . . . . . . . . . . . . . . . . Martial Activations . | . . . . . . . . . . . . . . . . Shielding Activations . | . . . . . . . . . . . . . . . . Robots Disrupted . | . . . . . . . . . . . . . . . . Combat Hostiles . | . . . . . . . . . . . . . . . . Robots Corrupted 8 | . . . . . . . . . . . . 5 1 . 2 Combat Hostiles 6 | . . . . . . . . . . . . 4 1 . 1 Parts Fried 20 | . . . . . 2 . . . . . . 10 3 . 5 Impact Corruptions 60 | . . . . . 3 . . . . . . 27 11 1 18 Robots Melted . | . . . . . . . . . . . . . . . . Combat Hostiles . | . . . . . . . . . . . . . . . . Parts Melted . | . . . . . . . . . . . . . . . . Heat Transferred 1604 | . . . . . 309 629 370 . . . 111 185 . . . Parts Sabotaged . | . . . . . . . . . . . . . . . . Parts Stolen . | . . . . . . . . . . . . . . . . Parts Stripped . | . . . . . . . . . . . . . . . . Power Chain Reactions . | . . . . . . . . . . . . . . . . Alert | -11 -10 -10 -10 -9 -8 -8 -7 -6 -5 -5 -5 -4 -4 -4 -3 ------- Run | Yrd Mat Min Exi Min Mat Sto Fac Fac Fac Upp Upp Fac Upp Upp Res Maximum Alert Level . | . . . . . . . . . . . . . . . . Low Security (%) 100 | 100 100 100 . 100 100 100 100 100 100 . . 100 . . 100 Level 1 . | . . . . . . . . . . . . . . . . Level 2 . | . . . . . . . . . . . . . . . . Level 3 . | . . . . . . . . . . . . . . . . Level 4 . | . . . . . . . . . . . . . . . . Level 5 . | . . . . . . . . . . . . . . . . High Security . | . . . . . . . . . . . . . . . . Max Security . | . . . . . . . . . . . . . . . . Peak Influence 171 | 5 50 19 . . 32 111 50 30 31 . . 42 . . 171 Initial 30 | . 3 19 . . . 5 30 16 . . . 7 . . . Average 11 | 1 7 3 . . 5 34 7 3 1 . . 4 . . 23 Influence Increases 2545 | 10 60 . . . 146 471 212 77 60 228 320 179 100 50 632 Destroy 0b10 Robot/C 1560 | . 20 . . . 80 260 140 20 20 200 220 100 80 40 380 Destroy 0b10 Robot/NC 115 | 10 . . . . 15 20 5 10 5 . . 10 . . 40 Destroy Leader 290 | . 10 . . . 34 32 30 10 12 10 10 30 20 10 82 Allied During Kill 116 | . . . . . 2 96 . . . 18 . . . . . Successful Hack 57 | . . . . . 5 2 26 5 . . . 15 . . 4 Disable Machine 60 | . . . . . . 30 . 15 . . . . . . 15 Destroy Structure 92 | . . . . . 10 16 11 17 8 . . 24 . . 6 Lose Combat Pursuer 255 | . 30 . . . . 15 . . 15 . 90 . . . 105 Influence Decreases 2407 | 5 15 50 . . 132 418 246 110 55 203 338 191 100 50 494 Entered New Map 110 | . 2 31 . . . 9 37 17 . 3 6 5 . . . Time Decay 1722 | 5 13 19 . . 111 189 209 93 35 170 290 108 70 40 370 Lost Part 325 | . . . . . 1 20 . . . 20 42 78 30 10 124 Lost Ally 250 | . . . . . 20 200 . . 20 10 . . . . . Squads Dispatched 23 | . 1 . . . 1 4 4 3 2 . . 3 . . 5 Investigation 7 | . . . . . . 2 3 1 . . . . . . 1 Extermination 8 | . . . . . . . 1 1 1 . . 1 . . 4 Reinforcement 5 | . 1 . . . 1 . . 1 . . . 2 . . . Assault 2 | . . . . . . 2 . . . . . . . . . Garrison 1 | . . . . . . . . . 1 . . . . . . Intercept . | . . . . . . . . . . . . . . . . Searches Triggered . | . . . . . . . . . . . . . . . . Construction Impeded . | . . . . . . . . . . . . . . . . Haulers Reinforced . | . . . . . . . . . . . . . . . . Active Scanning Responses . | . . . . . . . . . . . . . . . . Cargo Convoy Interrupts . | . . . . . . . . . . . . . . . . Stealth | -11 -10 -10 -10 -9 -8 -8 -7 -6 -5 -5 -5 -4 -4 -4 -3 --------- Run | Yrd Mat Min Exi Min Mat Sto Fac Fac Fac Upp Upp Fac Upp Upp Res Distress Signals 6 | . 1 . . . 2 2 . . 1 . . . . . . Communications Jammed 2 | . . . . . . . . . . . . . . . 2 Distress Signals 2 | . . . . . . . . . . . . . . . 2 Times Spotted 140 | . 1 . . . 8 18 11 4 13 15 18 11 4 2 35 Peak Tracking Total 7 | . 4 . . . 4 5 4 1 4 5 7 4 2 2 7 Tactical Retreats 11 | . 1 . . . . 1 . . 1 . 3 . . . 5 Traps | -11 -10 -10 -10 -9 -8 -8 -7 -6 -5 -5 -5 -4 -4 -4 -3 ------- Run | Yrd Mat Min Exi Min Mat Sto Fac Fac Fac Upp Upp Fac Upp Upp Res Traps Triggered 8 | . . . . . . 1 1 1 2 . . 2 . . 1 Indirectly . | . . . . . . . . . . . . . . . . Trap Hack Attempts . | . . . . . . . . . . . . . . . . Triggered . | . . . . . . . . . . . . . . . . Disarmed . | . . . . . . . . . . . . . . . . Reprogrammed . | . . . . . . . . . . . . . . . . Reused . | . . . . . . . . . . . . . . . . Traps Extracted . | . . . . . . . . . . . . . . . . Installed . | . . . . . . . . . . . . . . . . Triggered . | . . . . . . . . . . . . . . . . Machines | -11 -10 -10 -10 -9 -8 -8 -7 -6 -5 -5 -5 -4 -4 -4 -3 ---------- Run | Yrd Mat Min Exi Min Mat Sto Fac Fac Fac Upp Upp Fac Upp Upp Res Machines Disabled 5 | . . . . . . 2 . 1 . . 1 . . . 1 Max in Single Turn 1 | . . . . . . 1 . 1 . . 1 . . . 1 Garrison Access 1 | . . . . . . . . . . . . 1 . . . Machines Repaired . | . . . . . . . . . . . . . . . . Machines Dismantled . | . . . . . . . . . . . . . . . . Machines Sabotaged . | . . . . . . . . . . . . . . . . Overloaded Fab Kills . | . . . . . . . . . . . . . . . . Hacking | -11 -10 -10 -10 -9 -8 -8 -7 -6 -5 -5 -5 -4 -4 -4 -3 --------- Run | Yrd Mat Min Exi Min Mat Sto Fac Fac Fac Upp Upp Fac Upp Upp Res Machines Accessed 28 | . . 1 2 . 3 5 6 2 . . 2 5 . . 2 Terminals 17 | . . . . . 2 4 4 2 . . 1 3 . . 1 Fabricators . | . . . . . . . . . . . . . . . . Repair Stations 3 | . . . . . . 1 1 . . . . 1 . . . Recycling Units . | . . . . . . . . . . . . . . . . Scanalyzers 3 | . . . . . 1 . 1 . . . . . . . 1 Garrison Access 1 | . . . . . . . . . . . . 1 . . . Total Hacks 71 | . . 1 2 . 9 12 16 5 . . 2 12 . . 12 Successful 45 | . . 1 2 . 6 6 12 3 . . 2 8 . . 5 Failed 26 | . . . . . 3 6 4 2 . . . 4 . . 7 Catastrophic 3 | . . . . . . 1 . . . . . . . . 2 Database Lockouts . | . . . . . . . . . . . . . . . . Manual 18 | . . . 1 . 2 . 4 2 . . . 2 . . 7 Terminals 39 | . . . . . 5 8 7 5 . . 1 6 . . 7 Fabricators . | . . . . . . . . . . . . . . . . Repair Stations 14 | . . . . . . 4 5 . . . . 5 . . . Recycling Units . | . . . . . . . . . . . . . . . . Scanalyzers 13 | . . . . . 4 . 4 . . . . . . . 5 Garrison Access 1 | . . . . . . . . . . . . 1 . . . Terminal Hacks 16 | . . 1 2 . 2 3 2 2 . . 2 2 . . . Record 2 | . . . 1 . . . . . . . 1 . . . . Prototype ID Bank 1 | . . . . . 1 . . . . . . . . . . Open Door 3 | . . 1 . . . 1 . . . . 1 . . . . Level Access Points 2 | . . . . . . . 1 . . . . 1 . . . Emergency Access Points 1 | . . . . . . . . 1 . . . . . . . Terminal Index 3 | . . . . . 1 1 1 . . . . . . . . Garrison Index 1 | . . . . . . . . . . . . 1 . . . Maintenance Status 1 | . . . . . . 1 . . . . . . . . . Hauler Manifests 1 | . . . . . . . . 1 . . . . . . . Proto ID Catalog 1 | . . . 1 . . . . . . . . . . . . Fabricator Hacks . | . . . . . . . . . . . . . . . . Repair Station Hacks 11 | . . . . . . 3 4 . . . . 4 . . . Scan Component 6 | . . . . . . 2 2 . . . . 2 . . . Repair 5 | . . . . . . 1 2 . . . . 2 . . . Recycling Unit Hacks . | . . . . . . . . . . . . . . . . Scanalyzer 12 | . . . . . 4 . 4 . . . . . . . 4 Insert Component 6 | . . . . . 2 . 2 . . . . . . . 2 Analyze 6 | . . . . . 2 . 2 . . . . . . . 2 Garrison Access Hacks 1 | . . . . . . . . . . . . 1 . . . Seal Access 1 | . . . . . . . . . . . . 1 . . . Unauthorized Hacks 5 | . . . . . . . 2 1 . . . 1 . . 1 Terminals 5 | . . . . . . . 2 1 . . . 1 . . 1 Botnet 5 | . . . . . . . 2 1 . . . 1 . . 1 Fabricators . | . . . . . . . . . . . . . . . . Repair Stations . | . . . . . . . . . . . . . . . . Recycling Units . | . . . . . . . . . . . . . . . . Scanalyzers . | . . . . . . . . . . . . . . . . Garrison Access . | . . . . . . . . . . . . . . . . Data Cores Recovered 2 | . . . . . . . . 2 . . . . . . . Used 1 | . . . . . . . . 1 . . . . . . . Hacking Detections 20 | . . . . . 2 4 6 2 . . . 4 . . 2 Full Trace Events 8 | . . . . . 1 2 3 1 . . . . . . 1 Feedback Events . | . . . . . . . . . . . . . . . . Feedback Blocked . | . . . . . . . . . . . . . . . . Robot Schematics Acquired . | . . . . . . . . . . . . . . . . Robots Built . | . . . . . . . . . . . . . . . . Authchips . | . . . . . . . . . . . . . . . . Time . | . . . . . . . . . . . . . . . . Total Robot Build Rating . | . . . . . . . . . . . . . . . . Part Schematics Acquired 5 | . . . . . 2 . 2 . . . . . . . 1 Parts Built . | . . . . . . . . . . . . . . . . Authchips . | . . . . . . . . . . . . . . . . Time . | . . . . . . . . . . . . . . . . Total Part Build Rating . | . . . . . . . . . . . . . . . . Parts Repaired 5 | . . . . . . 1 2 . . . . 2 . . . Time 158 | . . . . . . 32 76 . . . . 50 . . . Parts Recycled . | . . . . . . . . . . . . . . . . Recycled Matter . | . . . . . . . . . . . . . . . . Retrieved Matter . | . . . . . . . . . . . . . . . . Retrieved Components . | . . . . . . . . . . . . . . . . Parts Scanalyzed 6 | . . . . . 2 . 2 . . . . . . . 2 Part Schematics Acquired 5 | . . . . . 2 . 2 . . . . . . . 1 Parts Damaged . | . . . . . . . . . . . . . . . . Bothacking | -11 -10 -10 -10 -9 -8 -8 -7 -6 -5 -5 -5 -4 -4 -4 -3 ------------ Run | Yrd Mat Min Exi Min Mat Sto Fac Fac Fac Upp Upp Fac Upp Upp Res Used RIF Installer . | . . . . . . . . . . . . . . . . Robots Hacked . | . . . . . . . . . . . . . . . . Non-combat . | . . . . . . . . . . . . . . . . Combat . | . . . . . . . . . . . . . . . . Robot Hacks Applied . | . . . . . . . . . . . . . . . . Relay Couplers Released . | . . . . . . . . . . . . . . . . Fabnet Peak Effective % . | . . . . . . . . . . . . . . . . Robots Rewired 2 | . . . . . . . . . . 2 . . . . . Allies Hacked . | . . . . . . . . . . . . . . . . Hacks Repelled . | . . . . . . . . . . . . . . . . Allies | -11 -10 -10 -10 -9 -8 -8 -7 -6 -5 -5 -5 -4 -4 -4 -3 -------- Run | Yrd Mat Min Exi Min Mat Sto Fac Fac Fac Upp Upp Fac Upp Upp Res Total Allies 15 | . . . . 1 . 12 . . . 2 . . . . . Largest Group 10 | . . . . 1 1 10 . . . 2 2 . . . . Highest-Rated Group 173 | . . . . 31 31 173 . . . 60 60 . . . . Highest-Rated Ally 31 | . . . . 31 31 31 . . . 30 30 . . . . Total Orders 15 | . . . . . . . . . 6 9 . . . . . STAY 1 | . . . . . . . . . 1 . . . . . . EXPLORE 14 | . . . . . . . . . 5 9 . . . . . Ally Attacks 98 | . . . . . 8 81 . . . 8 1 . . . . Total Damage 1256 | . . . . . 108 1028 . . . 120 . . . . . Kills 14 | . . . . . 1 11 . . . 2 . . . . . Allies Corrupted . | . . . . . . . . . . . . . . . . Allies Melted 2 | . . . . . . 2 . . . . . . . . . Intel | -11 -10 -10 -10 -9 -8 -8 -7 -6 -5 -5 -5 -4 -4 -4 -3 ------- Run | Yrd Mat Min Exi Min Mat Sto Fac Fac Fac Upp Upp Fac Upp Upp Res Active Infowar (turns) 8118 | 6 51 151 284 299 81 . 1164 936 833 587 1961 16 219 14 1516 Optics 683 | . . . . . . . . . . . . . . . 683 Sensors 29 | . . . . . . . . . . . . . . 14 15 Terrain 6537 | 6 51 151 284 299 80 . 1162 936 833 539 1961 16 219 . . Cloaking 1409 | . . . . . 25 . 843 493 . 48 . . . . . Jamming 2008 | . . . . . . . . . . . 644 . . . 1364 ECM 386 | . . . . . . . . . . . 386 . . . . Robot Analysis Total . | . . . . . . . . . . . . . . . . Derelict Logs Recovered 6 | . . . . 1 . . . . . 1 1 . 1 2 . Drone Launches 16 | . . . . . . . . . 7 9 . . . . . Drone Recoveries . | . . . . . . . . . . . . . . . . Exploration | -11 -10 -10 -10 -9 -8 -8 -7 -6 -5 -5 -5 -4 -4 -4 -3 ------------- Run | Yrd Mat Min Exi Min Mat Sto Fac Fac Fac Upp Upp Fac Upp Upp Res Turns Passed 12557 | 75 51 151 284 299 711 674 1518 936 833 1049 1961 965 1232 159 1659 Spaces Moved 7125 | 49 40 134 268 273 268 266 833 654 471 619 1306 544 594 78 728 Core 232 | 9 . . . . . . . . . . . . . 65 158 Treads 2 | . . . . . . . . . . . . . . . 2 Legs 2889 | . . . . . . 137 302 205 471 619 548 . 185 . 422 Wheels 2240 | 40 40 134 268 273 268 129 531 449 . . . . . . 108 Hover 1762 | . . . . . . . . . . . 758 544 409 13 38 Flight . | . . . . . . . . . . . . . . . . Fastest Speed 44 | 50 90 105 105 105 108 115 108 110 120 121 121 44 131 50 50 Average Speed 123 | 82 98 105 105 105 116 154 115 113 120 133 133 89 187 86 108 Slowest Speed 750 | 100 105 105 105 105 120 190 190 120 121 192 193 230 330 750 400 Overloaded Moves . | . . . . . . . . . . . . . . . . Propulsion Burnouts . | . . . . . . . . . . . . . . . . Robots Hopped . | . . . . . . . . . . . . . . . . Potential Cave-ins . | . . . . . . . . . . . . . . . . Cave-ins Triggered . | . . . . . . . . . . . . . . . . Exploration Rate (%) 35 | 4 7 39 60 52 25 33 17 20 23 80 98 7 72 12 17 Regions Visited 15 Branch Regions 8 Pre-discovered Areas 2 | . . . 1 1 . . . . . . . . . . . Known Exits Taken 2 | . . . . . . . 1 . . . . . . 1 . Unknown Exits Taken 13 | 1 1 1 1 1 1 1 . 1 1 1 1 1 1 . . Scrap Searched 11 | . . . . 1 . . . . . 4 3 . 1 2 . Spaces Dug 78 | . . . . . 11 . 10 . 4 27 5 19 . . 2 Terrain Destroyed 233 | . . . . . 11 14 10 15 4 127 28 21 . . 3 Melee 32 | . . . . . 6 . 10 . 4 1 3 6 . . 2 Projectile 24 | . . . . . 5 . . . . 1 2 15 . . 1 AOE 177 | . . . . . . 14 . 15 . 125 23 . . . . Terrain Rammed . | . . . . . . . . . . . . . . . . Walls Destroyed . | . . . . . . . . . . . . . . . . Machines Disabled . | . . . . . . . . . . . . . . . . Actions | -11 -10 -10 -10 -9 -8 -8 -7 -6 -5 -5 -5 -4 -4 -4 -3 --------- Run | Yrd Mat Min Exi Min Mat Sto Fac Fac Fac Upp Upp Fac Upp Upp Res Total 10267 | 68 48 144 270 284 604 507 1335 839 725 818 1447 915 694 151 1418 Wait 2228 | . 2 10 . 5 275 172 412 123 198 155 23 259 67 52 475 Move 7110 | 48 39 133 267 272 267 265 832 653 470 618 1305 543 593 77 728 Hop . | . . . . . . . . . . . . . . . . Pick Up 121 | 7 3 1 3 5 6 7 14 11 12 3 17 10 6 1 15 Fast Attach 93 | 7 . . . . 1 7 8 4 2 1 8 11 5 5 34 Attach 64 | . . . . . 10 . 8 9 2 3 7 6 7 1 11 Detach 21 | . . . . . 3 1 5 1 . . . 1 4 . 6 Swap 64 | . 1 . . 2 7 9 5 10 4 4 7 7 2 . 6 Drop 115 | . 1 . . . 2 16 19 13 16 1 20 6 . 3 18 Fire 220 | 6 2 . . . 17 28 5 3 . 20 21 28 . 6 84 Melee 195 | . . . . . 16 . 27 4 13 1 39 44 10 6 35 Ram 5 | . . . . . . . . . . . . . . . 5 Kick 1 | . . . . . . . . . . . . . . . 1 Crush . | . . . . . . . . . . . . . . . . Escape Stasis 16 | . . . . . . . . 8 8 . . . . . . Rewire 14 | . . . . . . 2 . . . 12 . . . . . Trap . | . . . . . . . . . . . . . . . . Miscellaneous . | . . . . . . . . . . . . . . . . Route ------- -11/Scrapyard -10/Materials -10/Mines (discovered 3 exits: [*Mat x2] / *Exi) -10/Exiles -9/Mines -8/Materials -8/Storage -7/Factory (discovered 4 exits: *Fac x4) -6/Factory -5/Factory -5/Upper Caves -5/Upper Caves (discovered 2 exits: *Fac / *War) -4/Factory (discovered 6 exits: Res x4 / [*Upp x2]) -4/Upper Caves -4/Upper Caves -3/Research (discovered 1 exit: Qua) History --------- Turn | Location | Event 2 | -11/Scrapyard | Met Revision 17 36 | -11/Scrapyard | Discovered new exit (range 12) 76 | -11/Scrapyard | Entered Materials 76 | -10/Materials | Discovered new exit (range 7) 127 | -10/Materials | Entered Mines 127 | -10/Mines | Discovered new exit (range 10) 130 | -10/Mines | Found the Drone Emporium 135 | -10/Mines | Found Prototype Device 189 | -10/Mines | Discovered new exit (range 8) 273 | -10/Mines | Deemed a non-threat by the Exiles lab entrance 274 | -10/Mines | Discovered new exit (range 5) 278 | -10/Mines | Entered Exiles 303 | -10/Exiles | Met 8R-AWN 307 | -10/Exiles | Build established: Mutant 322 | -10/Exiles | Met EX-HEX 356 | -10/Exiles | Met EX-BIN 371 | -10/Exiles | Aligned with FarCom system 372 | -10/Exiles | Given EX-Vault access code 399 | -10/Exiles | Opened EX-Vault 410 | -10/Exiles | Found Cloak of Protection 431 | -10/Exiles | Warned to stay clear of 0b10 Research branches 463 | -10/Exiles | Met EX-DEC 467 | -10/Exiles | Learned location of Zion (-7) 553 | -10/Exiles | Discovered new exit (range 10) 562 | -10/Exiles | Left Exiles lab with Cloak of Protection 562 | -10/Exiles | Entered Mines 603 | -9/Mines | Received a Rocket Launcher from a helpful Derelict 839 | -9/Mines | Discovered new exit (range 14) 848 | -9/Mines | Received a Mining Laser from a helpful Derelict 861 | -9/Mines | Entered Materials 861 | -8/Materials | Accompanied by 1 ally 861 | -8/Materials | Evolved 4 slots: Propulsion x1, Utility x3 884 | -8/Materials | Build established: Skirmisher 1235 | -8/Materials | Build established: Assassin 1264 | -8/Materials | Identified Decoy Drone Bay 1510 | -8/Materials | Discovered new exit (range 15) 1572 | -8/Materials | Entered Storage 1664 | -8/Storage | Assisted by bots powering up and referring to "LRC-V3" 1794 | -8/Storage | Repaired Rocket Launcher 1847 | -8/Storage | Lost 3 allies 1958 | -8/Storage | Lost 7 allies 1996 | -8/Storage | Discovered new exit (range 15) 2009 | -8/Storage | Met a pair of Derelict thieves 2246 | -8/Storage | Entered Factory 2246 | -7/Factory | Evolved 2 slots: Power x1, Propulsion x1 2433 | -7/Factory | Repaired Carbon-fiber Leg 2478 | -7/Factory | Repaired Carbon-fiber Leg 2549 | -7/Factory | Build established: Scavenger-Mutant 2898 | -7/Factory | Build established: Scavenger-Assassin 3138 | -7/Factory | Identified exit to Factory 3764 | -7/Factory | Entered another Factory area 3764 | -6/Factory | Evolved 2 slots: Propulsion x1, Utility x1 4162 | -6/Factory | Build established: Scavenger-Gladiator 4604 | -6/Factory | Build established: Scavenger-Assassin 4656 | -6/Factory | Discovered new exit (range 12) 4700 | -6/Factory | Entered another Factory area 4700 | -5/Factory | Evolved 2 slots: Propulsion x1, Utility x1 5128 | -5/Factory | Build established: Assassin 5198 | -5/Factory | Discovered new exit (range 32) 5451 | -5/Factory | Garrison activated, responded to threat 5533 | -5/Factory | Entered Upper Caves 5651 | -5/Upper Caves | Attracted the attention of an 0b10 checkpoint 5827 | -5/Upper Caves | Build established: Mutant 5854 | -5/Upper Caves | Attracted the attention of an 0b10 outpost 6012 | -5/Upper Caves | Lost 4 allies 6499 | -5/Upper Caves | Learned Factory terminal intel 6552 | -5/Upper Caves | Discovered new exit (range 15) 6582 | -5/Upper Caves | Entered another Upper Caves area 6582 | -5/Upper Caves | Accompanied by 2 allies 7210 | -5/Upper Caves | Build established: Scavenger-Mutant 7296 | -5/Upper Caves | Attracted the attention of an 0b10 base 7358 | -5/Upper Caves | Identified exit to Warlord 7360 | -5/Upper Caves | Lost 6 parts (1p3n1u1w) 7508 | -5/Upper Caves | Found DCF Scrap (14 items) 7820 | -5/Upper Caves | Build established: Derelict-Mutant 8025 | -5/Upper Caves | Spotted B-75 Beast 8399 | -5/Upper Caves | Lost 3 parts (3u) 8515 | -5/Upper Caves | Discovered new exit (range 12) 8543 | -5/Upper Caves | Entered Factory 8543 | -4/Factory | Evolved 2 slots: Propulsion x2 8544 | -4/Factory | Loaded intel: 28 terminal locations 8639 | -4/Factory | Identified exit to Research 8692 | -4/Factory | Discovered new exit (range 5) 8860 | -4/Factory | Build established: Hacker-Mutant 8874 | -4/Factory | Repaired Gravmag Array 8900 | -4/Factory | Repaired Gravmag Array 9171 | -4/Factory | Lost 3 parts (2p1u) 9290 | -4/Factory | Lost 4 parts (1n2u1w) 9363 | -4/Factory | Lost 4 parts (1p1n2u) 9435 | -4/Factory | Discovered new exit (range 10) 9470 | -4/Factory | System corruption reached 10% 9508 | -4/Factory | Entered Upper Caves 9537 | -4/Upper Caves | Lost 3 parts (1p1n1u) 9800 | -4/Upper Caves | Build established: Mutant 10344 | -4/Upper Caves | Lost 3 parts (1p2u) 10601 | -4/Upper Caves | Discovered new exit (range 6) 10622 | -4/Upper Caves | Entered a destroyed Warlord outpost 10740 | -4/Upper Caves | Entered another Upper Caves area 10751 | -4/Upper Caves | Core integrity fell below 50% 10774 | -4/Upper Caves | System corruption reached 30% 10828 | -4/Upper Caves | Lost 8 parts (1p5n1u1w) 10889 | -4/Upper Caves | Learned Research emergency access door positions 10893 | -4/Upper Caves | Learned Research stockpile data 10895 | -4/Upper Caves | Discovered exit to Research (range 11) 10899 | -4/Upper Caves | Entered Research 10899 | -3/Research | Evolved 2 slots: Utility x1, Weapon x1 10900 | -3/Research | Identified exit to Quarantine 11112 | -3/Research | Spotted B-86 Titan 11311 | -3/Research | Build established: Scavenger-Gunner 11793 | -3/Research | System corruption reached 10% 11860 | -3/Research | Build established: Scavenger-Mutant 12271 | -3/Research | Lost 4 parts (2n2w) 12443 | -3/Research | Core integrity fell below 50% 12490 | -3/Research | Lost 19 parts (3p8n6u2w) 12508 | -3/Research | Core integrity fell below 20% 12530 | -3/Research | System corruption reached 30% 12558 | -3/Research | Destroyed by H-77 Assassin with Coil Gun Last Messages --------------- 12538_ Penetrated by Slug. 12538_ H-77 Assassin knocked back. 12538_ Penetrated by Slug. 12541_ Imp. Antigrav System destroyed. 12541_ Lgt. Antimatter Cannon destroyed. 12541_ Penetrated by Slug. 12541_ Slug penetrates Wall. 12542_ Wall collapses. 12543_ Acquired Corrupted Gamma Rifle. 12543_ Integrated Corrupted Gamma Rifle (+8). 12544_ Slug penetrates Ion Accelerator. 12544_ Slug penetrates Wall. 12545_ Penetrated by Slug. 12550_ Slug penetrates Wall. 12551_ System corrupted: Energy discharge (-14). 12555_ Penetrated by Slug. 12555_ Slug penetrates Wall. 12555_ H-77 Assassin IFF system glitched. 12555_ Slug penetrates H-77 Assassin. 12558_ Penetrated by Slug. Map ----- +----------------------------------------------------+ | ???????????? #?# #??????? | | ???????????? #?# #??????? | | =??????????? #?# ####???? | | ?????????????????????###### ### #?# +???? | | ??????????????????????????# T## #?# #???? | | ??????????????????????????# ## ### #???? | | ??????????????????????##### ### #???? | | ??????????????????????+ #?# #???? | | ??????????????????????##### #?# +???? | | ??????????????????????????# #?# #???? | | ??????????????????????????# #?#############???? | | ????????????+?????????????# # ! #????????? | | ??????????????????????????# # #????????? | | ??????????????????????????+ + #????????? | | ??????????????????????????# # #????????? | | ??????????????????????????# # #????????? | | ???????????????????????!??# #? """" #????????? | | ????????????????=?????????#% #? """" #????????? | | ??????????????????????????# #??"""" #????????? | | ??????????????????????????# %%#??"""" #????????? | | ????????????????Y?????????#% #???######????????? | | ??????????????????????????# #?????????????????? | | ??????????????????????????# #?????????????????? | | ??????????????????????????# = #?????????????????? | | ??????????????????????#####;h;######?????????????? | | ??????????????????????# @!h!%! #?????????????? | | ??????????????????????# %! #?????????????? | | ??????????????????????# ! #?????????????? | | ??????????????????????# =%% % #?????????????? | | ??????????????????????# """ #?????????????? | | ??????????????????????# """ #?????????????? | | ??????????????????????# """ #?????????????? | | ??????????????????????# """ #?????????????? | | ??????????????????????# """ #?????????????? | | ??????????????????????# #?????????????? | | ??????????????????????# #?????????????? | | ??????????????????????# #?????????????? | | ??????????????????????#############??????????????? | | | | | | | | | | | | | | | | | | | | | | | | | +----------------------------------------------------+ Best States ------------- Heat Dissipation 136 Energy Generation 51 Energy Capacity 515 Matter Stores 500 Matter Capacity 500 Sight Range 20 Robot Scan Range 16 Terrain Scan Range 16 Terrain Scan Density 10 ECM Strength 2 Jamming Range 14 Cloak Strength 5 Additional Mass Support 12 Corruption Block 10 Armor Coverage 450 Resistance: KI 25 Resistance: EM 25 Power Shielding 66 Evasion (%) 57 Targeting Accuracy 8 Melee Accuracy 14 Target Analysis 8 Core Analysis 6 Recoil Reduction 1 Offensive Hacking 32 Defensive Hacking 10 Item Schematics ----------------- Com. Wheel | -8/Materials | Scanalyzed Rocket Launcher | -8/Materials | Scanalyzed Carbon-fiber Leg | -7/Factory | Scanalyzed System Restoration Module | -7/Factory | Scanalyzed Hacking Suite | -3/Research | Scanalyzed Robot Schematics ------------------ None Fabricated ------------ Nothing Repaired ---------- Rocket Launcher | 22% | -8/Storage Carbon-fiber Leg | 33% | -7/Factory Carbon-fiber Leg | 48% | -7/Factory Gravmag Array | 27% | -4/Factory Gravmag Array | 35% | -4/Factory Alien Tech Used ----------------- None Achievements -------------- None Challenges ------------ None Game ------ Seed MiniFrostRedirector Manual? 0 Play Time 02:49:25 Cumulative 92.7 hours Start 2025.10.14 @ 20:23:54 End 2025.10.15 @ 12:39:29 Sessions 11 Manual Loads 0 Difficulty Rogue Special Mode None Game No. 91 Rogue 91 Adventurer 0 Explorer 0 Win Type - Total 0 Types 0/0/0/0/0/0/0/0/0/0 Lore% 21 Gallery% 41 Achievement% 34 Wizard Run 0 Options --------- Layout 1 ASCII 0 Keyboard 1 Movement Numpad Keybinds 0 Fullscreen 1 Font 32/SmallcapsGlow Map View 77x35 Zoom Use 0% Tactical HUD 1 Map Filters NONE Filters NONE Steam 1 RUN: 1d33f7cd-c4f1-469b-ba10-111e5c5150c4